fUST/lending_fUST_20241013
["ID","MTS","AMOUNT","RATE_DAILY","PERIOD"]
[340178230,1728773446296,-5000.0,0.00050972,20]
[340178231,1728773446306,-3000.0,0.00051,85]
[340178232,1728773446315,-3000.0,0.0005101,85]
[340178233,1728773446326,-151.0,0.0005101,120]
[340178234,1728773446338,-151.0,0.0005101,120]
[340178235,1728773446348,-3000.0,0.0005102,85]
[340178236,1728773446360,-3000.0,0.0005103,85]
[340178237,1728773446370,-3000.0,0.0005104,85]
[340178238,1728773446381,-3000.0,0.0005105,85]
[340178239,1728773446391,-3000.0,0.0005106,85]
[340178240,1728773446409,-3000.0,0.0005107,85]
[340178241,1728773446422,-5369.897741,0.0005108,85]
[340178242,1728773446433,-151.66418647,0.00051099,9]
[340178243,1728773446445,-160.0,0.00051151,3]
[340178244,1728773446457,-1099.60921506,0.00051204,2]
[340178245,1728773446467,-1000.0,0.00051324,10]
[340178246,1728773446479,-3011.0,0.00051472,15]
[340178247,1728773446491,-241.0,0.00051781,120]
[340178248,1728773446501,-346.0,0.00051781,120]
[340178249,1728773446511,-1626.59,0.000518,30]
[340178250,1728773446522,-5000.0,0.00051972,20]
[340178251,1728773446532,-3647.67075204,0.00052,120]
[340178252,1728773446545,-200.0,0.00052,120]
[340178253,1728773446557,-19792.0255779,0.00052,7]
[340178254,1728773446568,-1475.69,0.00052,30]
[340178255,1728773446578,-151.0,0.00052,120]
[340178256,1728773446589,-1942.044653,0.00052,120]
[340178257,1728773446600,-1942.044653,0.00052,120]
[340178258,1728773446611,-224.368471,0.00052,120]
[340178259,1728773446622,-224.368471,0.00052,120]
[340178260,1728773446634,-151.0,0.00052,120]
[340178261,1728773446646,-151.0,0.00052,120]
[340178262,1728773446658,-3750.0,0.00052054,120]
[340178263,1728773446671,-703.53,0.000522,30]
[340178264,1728773446682,-1298.2,0.000522,30]
[340178265,1728773446693,-1324.0,0.00052319,74]
[340178266,1728773446704,-61137.05355447,0.0005233,120]
[340178267,1728773446713,-151.0,0.0005233,120]
[340178268,1728773446724,-167.229698,0.00052539,120]
[340178269,1728773446735,-167.229698,0.00052539,120]
[340178270,1728773446744,-151.0,0.00052539,120]
[340178271,1728773446755,-151.0,0.00052539,120]
[340178272,1728773446766,-163.22775,0.00052539,120]
[340178273,1728773446777,-46789.03585836,0.0005254,120]
[340178274,1728773447094,-1243.61978125,0.00037997,10]
[340178278,1728774338183,-199.8641656,0.0002873,2]
[340178279,1728774428196,-188.83069158,0.00028469,2]
[340178280,1728774429112,-665.46392542,0.00028469,2]
[340178281,1728774429140,-50.1358344,0.0002873,2]
[340178282,1728774429163,-250.0,0.00028809,2]
[340178283,1728774429272,-250.0,0.00028887,2]
[340178284,1728774429318,-250.0,0.00028966,2]
[340178285,1728774429339,-250.0,0.00029045,2]
[340178286,1728774429362,-250.0,0.00029124,2]
[340178287,1728774429385,-250.0,0.00029203,2]
[340178288,1728774429409,-250.0,0.00029281,2]
[340178289,1728774429433,-250.0,0.0002936,2]
[340178290,1728774429457,-166.87235035,0.00029418,2]
[340178291,1728774429483,-250.0,0.00029439,2]
[340178292,1728774429510,-250.0,0.00029518,2]
[340178293,1728774429534,-250.0,0.00029597,2]
[340178294,1728774429559,-250.0,0.00029675,2]
[340178295,1728774429582,-250.0,0.00029754,2]
[340178296,1728774429608,-250.0,0.00029833,2]
[340178297,1728774429630,-250.0,0.00029912,2]
[340178298,1728774429654,-166.87235035,0.00029964,2]
[340178299,1728774429678,-250.0,0.00029991,2]
[340178300,1728774429700,-178.418411,0.00029995,2]
[340178301,1728774429725,-250.0,0.00030069,2]
[340178302,1728774429748,-400.0,0.00030148,2]
[340178303,1728774429770,-400.0,0.00030148,2]
[340178304,1728774429793,-250.0,0.00030148,2]
[340178305,1728774429814,-250.0,0.00030227,2]
[340178306,1728774429835,-10588.04058377,0.00030609,2]
[340178307,1728774434103,-158.09945065,0.00030509,2]
[340178308,1728774435144,-8.7728997,0.00030509,2]
[340178309,1728774435169,-206.11765928,0.00030609,2]
[340178310,1728774452084,-166.666666,0.00028157,2]
[340178311,1728774452109,-166.666666,0.00030077,2]
[340178312,1728774452130,-3868.14781581,0.00030509,2]
[340178323,1728774549141,-510.298164,0.00029501,2]
[340178324,1728774549162,-1133.4504899,0.00029799,2]
[340178325,1728774549182,-510.298164,0.00030186,2]
[340178326,1728774549203,-425.60201934,0.00030509,2]
[340178327,1728774549224,-400.0,0.00030609,2]
[340178328,1728774549249,-16155.1550153,0.0003061,2]
[340178329,1728774549269,-264.14092084,0.0003061,7]
[340178330,1728774549290,-510.298164,0.00030871,2]
[340178331,1728774549311,-166.666666,0.00031996,2]
[340178332,1728774549333,-3000.0,0.00032219,2]
[340178333,1728774551133,-500.0,0.00033355,7]
[340178334,1728774551157,-500.0,0.00033355,7]
[340178335,1728774551179,-596.14642584,0.00033355,7]
[340178336,1728774551201,-500.0,0.00033355,7]
[340178337,1728774551223,-451.10902308,0.00033355,7]
[340178338,1728774551244,-516.6496138,0.00033355,7]
[340178339,1728774551264,-549.99999999,0.00033355,7]
[340178340,1728774551286,-500.0,0.00033355,7]
[340178341,1728774551306,-500.0,0.00033355,7]
[340178342,1728774551328,-500.0,0.00033355,7]
[340178343,1728774551349,-500.0,0.00033355,7]
[340178344,1728774551371,-526.6557121,0.00033355,7]
[340178345,1728774551392,-455.45115015,0.00033355,7]
[340178346,1728774554129,-44.54884985,0.00033355,7]
[340178347,1728774554151,-500.0,0.00033355,7]
[340178348,1728774554173,-500.0,0.00033355,7]
[340178349,1728774554195,-500.0,0.00033355,7]
[340178350,1728774554217,-7036.28569939,0.00033356,2]
[340178351,1728774564144,-6264.05083699,0.00033356,2]
[340178352,1728774571108,-10842.21937827,0.00033356,2]
[340178353,1728774572179,-757.44408535,0.00033356,2]
[340178354,1728774572201,-560.0,0.0003367,2]
[340178355,1728774626181,603.9636918,0.00032559,2]
[340178388,1728774632086,-302.42545213,0.00035,2]
[340178390,1728774632097,-302.42545213,0.00035,2]
[340178392,1728774632107,-1313.1966876,0.00035075,2]
[340178394,1728774632116,-21503.95093324,0.00035346,2]
[340178399,1728774632165,-20.98118795,0.00035346,2]
[340178439,1728774639524,-16934.57638684,0.00035346,2]
[340178440,1728774639534,-262.79310617,0.00035346,14]
[340178441,1728774639543,-400.0,0.00035347,2]
[340178442,1728774639553,-400.0,0.00035347,2]
[340178443,1728774639562,-3007.6246171,0.00035348,2]
[340178444,1728774639572,-302.42545213,0.0003535,2]
[340178445,1728774639581,-302.42545213,0.0003535,2]
[340178446,1728774639591,-225.18396801,0.00035407,7]
[340178447,1728774639600,-450.0,0.00035407,7]
[340178448,1728774639610,-4293.74983515,0.00035408,2]
[340178449,1728774639623,-302.42545213,0.000357,2]
[340178450,1728774639632,-302.42545213,0.000357,2]
[340178451,1728774639643,-268.683,0.00035994,43]
[340178452,1728774639653,-302.42545213,0.0003605,2]
[340178454,1728774639662,-302.4858225,0.0003605,2]
[340178455,1728774639672,-302.42545213,0.000364,2]
[340178456,1728774639682,-450.93800407,0.0003675,4]
[340178457,1728774639693,-500.0,0.00037314,5]
[340178458,1728774639702,-716.5142,0.0003738,30]
[340178459,1728774639712,-5000.0,0.000375,50]
[340178460,1728774639722,-568.45743712,0.00037815,2]
[340178461,1728774639732,-158.48478744,0.0003787,2]
[340178462,1728774639742,-158.48478744,0.00037885,2]
[340178463,1728774639752,-560.0,0.00037886,2]
[340178464,1728774639762,-2571.04298092,0.000379,2]
[340178465,1728774639771,-158.48478744,0.000379,2]
[340178466,1728774639781,-168.249502,0.00037915,2]
[340178467,1728774639791,-396.37,0.0003795,3]
[340178468,1728774639800,-198.19,0.0003795,3]
[340178469,1728774639810,-198.19,0.0003795,3]
[340178470,1728774639820,-3295.63,0.0003795,10]
[340178471,1728774639829,-163415.404108,0.0003796,5]
[340178473,1728774639839,-3994.41371667,0.0003796,5]
[340178474,1728774639850,-500.0,0.00037973,5]
[340178475,1728774639859,-504.09472035,0.00037973,5]
[340178476,1728774639869,-500.0,0.00037973,5]
[340178477,1728774639879,-163415.404108,0.0003798,5]
[340178478,1728774639889,-9320.29867223,0.0003798,5]
[340178479,1728774639898,-2662.94247778,0.0003799,5]
[340178480,1728774639908,-194.63398128,0.00038,2]
[340178481,1728774639921,-100914.91201317,0.00038,2]
[340178482,1728774639931,-827.37,0.00038,30]
[340178483,1728774639941,-825.26,0.00038,30]
[340178484,1728774639951,-3409.57,0.00038,30]
[340178485,1728774639960,-337.2573735,0.00038287,2]
[340178486,1728774639969,-173.052696,0.0003831,2]
[340178487,1728774639978,-1000.0,0.00038356,2]
[340178488,1728774639988,-173.052696,0.00038501,2]
[340178489,1728774639998,-1000.0,0.0003863,2]
[340178490,1728774640009,-560.0,0.00038881,30]
[340178491,1728774640020,-1000.0,0.00038904,2]
[340178492,1728774640031,-1521.93944335,0.00039099,120]
[340178493,1728774640041,-1000.0,0.00039178,2]
[340178495,1728774640053,-792.74,0.0003932,3]
[340178497,1728774640064,-396.38,0.0003932,3]
[340178499,1728774640073,-396.38,0.0003932,3]
[340178500,1728774640084,-500.0,0.00039342,5]
[340178502,1728774640093,-1000.0,0.00039452,2]
[340178503,1728774640104,-473.36,0.00039726,2]
[340178505,1728774640114,-500.0,0.00039726,15]
[340178507,1728774640124,-500.0,0.00039726,15]
[340178509,1728774640133,-500.0,0.00039726,15]
[340178510,1728774640143,-500.0,0.00039726,15]
[340178511,1728774640154,-500.0,0.00039726,15]
[340178513,1728774640163,-500.0,0.00039726,15]
[340178515,1728774640173,-500.0,0.00039726,15]
[340178517,1728774640182,-500.0,0.00039726,15]
[340178519,1728774640192,-500.0,0.00039726,15]
[340178521,1728774640202,-500.0,0.00039726,15]
[340178523,1728774640212,-500.0,0.00039726,15]
[340178524,1728774640222,-500.0,0.00039726,15]
[340178526,1728774640231,-500.0,0.00039726,15]
[340178528,1728774640240,-500.0,0.00039726,15]
[340178530,1728774640250,-500.0,0.00039726,15]
[340178532,1728774640259,-500.0,0.00039726,15]
[340178533,1728774640268,-500.0,0.00039726,15]
[340178534,1728774640278,-500.0,0.00039726,15]
[340178535,1728774640288,-500.0,0.00039726,15]
[340178536,1728774640297,-296.01198694,0.00039726,15]
[340178537,1728774640307,-500.0,0.00039726,15]
[340178538,1728774640316,-1331.47123889,0.0003999,6]
[340178539,1728774640326,-5000.0,0.0004,65]
[340178540,1728774640336,-1000.0,0.0004,30]
[340178541,1728774640345,-1000.0,0.0004,30]
[340178542,1728774640355,-1000.0,0.0004,30]
[340178543,1728774640365,-1000.0,0.0004,30]
[340178544,1728774640375,-1000.0,0.0004,30]
[340178545,1728774640384,-1000.0,0.0004,30]
[340178546,1728774640394,-242.0,0.0004,30]
[340178547,1728774640403,-1000.0,0.0004,30]
[340178548,1728774640413,-1000.0,0.0004,30]
[340178549,1728774640422,-1000.0,0.0004,30]
[340178550,1728774640432,-1000.0,0.0004,30]
[340178551,1728774640441,-743.0,0.0004,30]
[340178552,1728774640451,-360.301733,0.0004,2]
[340178553,1728774640461,-150.112233,0.0004,10]
[340178554,1728774640471,-4293.74983515,0.00040306,28]
[340178555,1728774640480,-150.112233,0.000404,8]
[340178556,1728774640489,-783.0,0.00040607,5]
[340178557,1728774640498,-827.37,0.000408,30]
[340178558,1728774640508,-3409.57,0.000408,30]
[340178559,1728774640517,-150.112233,0.000408,7]
[340178560,1728774640526,-154.115381,0.000409,2]
[340178561,1728774640535,-150.0,0.000409,45]
[340178562,1728774640545,-825.26,0.000409,30]
[340178563,1728774640554,-2571.04298085,0.00041011,2]
[340178564,1728774640564,-2070.17,0.0004102,42]
[340178565,1728774640573,-150.112233,0.000412,7]
[340178566,1728774640582,-500.0,0.00041354,10]
[340178567,1728774640592,-150.112233,0.000416,8]
[340178568,1728774640601,-3994.41371667,0.00041965,6]
[340178569,1728774640610,-500.0,0.00041973,10]
[340178570,1728774640619,-150.0,0.00041996,2]
[340178571,1728774640629,-150.0,0.00041996,2]
[340178572,1728774640638,-526.0,0.00041996,2]
[340178573,1728774640647,-632.0,0.00041996,2]
[340178574,1728774640656,-1157.0,0.00041996,2]
[340178575,1728774640665,-500.0,0.0004248,10]
[340178576,1728774640675,-252.63160163,0.0004248,10]
[340178577,1728774640684,-854.294617,0.00042703,2]
[340178578,1728774640693,-1000.0,0.00042724,10]
[340178579,1728774640702,-783.0,0.00042769,30]
[340178580,1728774640711,-500.0,0.00043342,10]
[340178581,1728774640784,-1097.0,0.00043524,5]
[340178582,1728774640794,-500.0,0.00043671,2]
[340178583,1728774640803,-2571.04298085,0.00044122,2]
[340178584,1728774640813,-1331.47123889,0.00044717,6]
[340178585,1728774640822,-150.0,0.00044996,2]
[340178586,1728774640832,-150.0,0.00044996,2]
[340178587,1728774640842,-526.0,0.00044996,2]
[340178588,1728774640851,-632.0,0.00044996,2]
[340178589,1728774640860,-1157.0,0.00044996,2]
[340178590,1728774640869,-161.50021741,0.00045041,2]
[340178591,1728774640878,-360.301733,0.00045105,120]
[340178592,1728774640888,-4293.74983515,0.00045205,28]
[340178593,1728774640899,-1000.0,0.00045704,120]
[340178594,1728774640909,-1000.0,0.00045978,120]
[340178595,1728774640920,-1000.0,0.00046252,120]
[340178596,1728774640931,-1000.0,0.00046526,120]
[340178597,1728774640940,-1536.0,0.00046651,5]
[340178598,1728774640951,-1000.0,0.000468,120]
[340178599,1728774640963,-536.2370446,0.0004698,12]
[340178600,1728774640973,-647.0,0.00047046,30]
[340178601,1728774640983,-1000.0,0.00047074,120]
[340178602,1728774640994,-1331.47123889,0.0004719,7]
[340178603,1728774641006,-827.37,0.000472,30]
[340178604,1728774641020,-25550.51871158,0.000472,120]
[340178605,1728774641030,-17850.64001371,0.000472,120]
[340178606,1728774641264,-7699.87869787,0.000472,120]
[340178607,1728774641274,-25550.51871158,0.000472,120]
[340178608,1728774641284,-1331.47123889,0.00047223,7]
[340178609,1728774641294,-2571.04298085,0.00047233,2]
[340178610,1728774641303,-1091.02505739,0.00047348,120]
[340178611,1728774641314,-536.2370446,0.0004798,14]
[340178612,1728774641323,-150.0,0.00047996,2]
[340178613,1728774641332,-526.0,0.00047996,2]
[340178614,1728774641341,-632.0,0.00047996,2]
[340178615,1728774641351,-1157.0,0.00047996,2]
[340178616,1728774641362,-757.079685,0.00048,25]
[340178617,1728774641372,-825.26,0.00048,30]
[340178618,1728774641382,-3409.57,0.00048,30]
[340178619,1728774641393,-5000.0,0.00048971,14]
[340178620,1728774641403,-536.2370446,0.0004898,15]
[340178621,1728774641413,-150.112233,0.000492,12]
[340178622,1728774641423,-1250.0,0.00049315,120]
[340178623,1728774641433,-1250.0,0.00049315,120]
[340178624,1728774641442,-1250.0,0.00049315,120]
[340178625,1728774641451,-3000.0,0.00049315,120]
[340178626,1728774641460,-3000.0,0.00049315,120]
[340178627,1728774641469,-3000.0,0.00049315,120]
[340178628,1728774641478,-3000.0,0.00049315,120]
[340178629,1728774641487,-3000.0,0.00049315,120]
[340178630,1728774641497,-3000.0,0.00049315,120]
[340178631,1728774641507,-3000.0,0.00049315,120]
[340178632,1728774641520,-3000.0,0.00049315,120]
[340178633,1728774641531,-1142.943078,0.00049315,120]
[340178634,1728774641542,-1331.47123889,0.0004991,7]
[340178635,1728774641552,-600.0,0.0004992,2]
[340178636,1728774641563,-536.2370446,0.0004998,16]
[340178637,1728774641575,-2151.0,0.00050002,15]
[340178638,1728774641586,-5000.0,0.00050082,20]
[340178639,1728774641596,-4293.74983515,0.00050104,28]
[340178640,1728774641606,-360.301733,0.00050209,120]
[340178641,1728774641617,-2571.04298085,0.00050344,2]
[340178642,1728774641627,-600.0,0.0005044,2]
[340178643,1728774641638,-2500.0,0.00050684,120]
[340178644,1728774641649,-1250.0,0.00050684,120]
[340178645,1728774641660,-150.112233,0.000508,11]
[340178646,1728774641670,-827.37,0.000508,30]
[340178647,1728774641679,-3409.57,0.000508,30]
[340178648,1728774641688,-825.26,0.000509,30]
[340178649,1728774641698,-600.0,0.0005096,2]
[340178650,1728774641707,-536.2370446,0.0005098,18]
[340178651,1728774641716,-526.0,0.00050996,120]
[340178652,1728774641725,-632.0,0.00050996,120]
[340178653,1728774641734,-1157.0,0.00050996,120]
[340178654,1728774641743,-160.0,0.00051,120]
[340178655,1728774641753,-224.0,0.00051,120]
[340178656,1728774641762,-3000.0,0.00051,85]
[340178657,1728774641772,-201.0,0.00051,120]
[340178658,1728774641781,-3000.0,0.0005101,85]
[340178659,1728774641791,-3000.0,0.0005102,85]
[340178660,1728774641802,-224.0,0.00051027,120]
[340178661,1728774641811,-3000.0,0.0005103,85]
[340178662,1728774641820,-3000.0,0.0005104,85]
[340178663,1728774641829,-3000.0,0.0005105,85]
[340178664,1728774641839,-3000.0,0.0005106,85]
[340178665,1728774641848,-3000.0,0.0005107,85]
[340178666,1728774641860,-5369.897741,0.0005108,85]
[340178667,1728774641870,-160.0,0.00051151,3]
[340178668,1728774641880,-5000.0,0.00051193,20]
[340178669,1728774641890,-600.0,0.0005148,2]
[340178670,1728774641900,-456.8906103,0.00051507,30]
[340178671,1728774641910,-317.3629164,0.00051507,30]
[340178672,1728774641921,-156.8796274,0.00051507,30]
[340178673,1728774641931,-298.7695201,0.00051507,30]
[340178674,1728774641942,-413.7492508,0.00051507,30]
[340178675,1728774641953,-500.0,0.000516,10]
[340178676,1728774641965,-157.0,0.0005174,120]
[340178677,1728774641975,-275.0,0.00052,120]
[340178678,1728774641988,-1099.60921506,0.00052,2]
[340178679,1728774641999,-151.66418647,0.00052105,10]
[340178680,1728774642010,-155.9,0.00052187,90]
[340178681,1728774642020,-5000.0,0.00052305,20]
[340178682,1728774642030,-275.0,0.00052329,120]
[340178683,1728774642053,-153.0,0.00052329,30]
[340178684,1728774642065,-301.5202838,0.00052329,30]
[340178685,1728774642075,-413.7492508,0.00052329,30]
[340178686,1728774642086,-153.0,0.00052329,30]
[340178687,1728774642099,-413.7492508,0.00052329,30]
[340178688,1728774642111,-301.5202838,0.00052329,30]
[340178689,1728774642121,-413.7492508,0.00052329,30]
[340178690,1728774642131,-413.7492508,0.00052329,30]
[340178691,1728774642141,-153.0,0.00052329,30]
[340178692,1728774642151,-301.5202838,0.00052329,30]
[340178693,1728774642160,-413.7492508,0.00052329,30]
[340178694,1728774642170,-413.7492508,0.00052329,30]
[340178695,1728774642179,-153.0,0.00052329,30]
[340178696,1728774642189,-301.5202838,0.00052329,30]
[340178697,1728774642198,-301.5202838,0.00052329,30]
[340178698,1728774642207,-301.5202838,0.00052329,30]
[340178699,1728774642217,-301.5202838,0.00052329,30]
[340178700,1728774642227,-150.112233,0.000524,11]
[340178701,1728774642236,-5000.0,0.000525,120]
[340178702,1728774642245,-2000.0,0.0005272,120]
[340178703,1728774642255,-155.9,0.00052734,90]
[340178704,1728774642265,-170.51153247,0.000529,120]
[340178705,1728774642275,-1000.0,0.0005297,10]
[340178706,1728774642285,-30073.97547479,0.00053,120]
[340178707,1728774642294,-155.9,0.0005328,90]
[340178708,1728774642303,-224.0,0.00053291,120]
[340178709,1728774642313,-1521.65511083,0.00053328,10]
[340178710,1728774642322,-500.0,0.00053336,7]
[340178711,1728774642332,-500.0,0.00053336,7]
[340178712,1728774642341,-382.21046586,0.00053336,10]
[340178713,1728774642351,-500.0,0.00053336,10]
[340178714,1728774642361,-160.0,0.00053352,4]
[340178715,1728774642372,-5000.0,0.00053416,20]
[340178716,1728774642383,-151.0,0.00053416,120]
[340178717,1728774642396,-151.0,0.00053416,120]
[340178718,1728774642405,-151.0,0.00053416,120]
[340178719,1728774642504,-210.414926,0.00053416,120]
[340178720,1728774642513,-210.414926,0.00053416,120]
[340178721,1728774642525,-5000.0,0.00053424,120]
[340178722,1728774642537,-500.0,0.00053424,120]
[340178723,1728774642549,-150.0,0.00053424,120]
[340178724,1728774642560,-500.0,0.00053424,120]
[340178725,1728774642570,-151.449402,0.00053424,120]
[340178726,1728774642580,-201.931624,0.00053424,120]
[340178727,1728774642590,-201.931624,0.00053424,120]
[340178728,1728774642601,-156.652751,0.00053424,120]
[340178729,1728774642612,-151.0,0.00053424,120]
[340178730,1728774642622,-5000.0,0.00053424,120]
[340178731,1728774642633,-5000.0,0.00053424,120]
[340178732,1728774642644,-4262.79836913,0.00053424,120]
[340178733,1728774642654,-2571.04298085,0.00053456,2]
[340178734,1728774642665,-15000.0,0.000535,30]
[340178735,1728774642676,-151.0,0.000535,120]
[340178736,1728774642685,-151.0,0.000535,60]
[340178737,1728774642694,-151.0,0.000535,120]
[340178738,1728774642703,-25550.51871158,0.00053626,120]
[340178739,1728774642712,-153.0,0.00053699,30]
[340178740,1728774642721,-153.0,0.00053699,30]
[340178741,1728774642731,-153.0,0.00053699,30]
[340178742,1728774642740,-153.0,0.00053699,30]
[340178744,1728774642750,-155.9,0.00053827,90]
[340178745,1728774642759,-26600.76507654,0.000539,2]
[340178746,1728774642769,-500.0,0.00053973,7]
[340178747,1728774642778,-150.7601419,0.00053973,30]
[340178748,1728774642788,-632.0,0.00053996,120]
[340178749,1728774642798,-1157.0,0.00053996,120]
[340178750,1728774642809,-515.37159887,0.00053999,84]
[340178751,1728774642819,-109564.17626132,0.00053999,30]
[340178752,1728774642834,-26958.84402774,0.00053999,30]
[340178755,1728774643198,-69.87592206,0.00053999,30]
[340178758,1728774646200,-17.56660563,0.00053699,30]
[340178759,1728774646703,-135.43339437,0.00053699,30]
[340178760,1728774646715,-1794.10032288,0.00053999,30]
[340178763,1728775074321,10000.0,0.00024001,2]
[340178764,1728775080310,10000.0,0.00024001,2]
[340178765,1728775086863,10000.0,0.00024001,2]
[340178766,1728775094168,10000.0,0.00024001,2]
[340178767,1728775099568,10000.0,0.00024001,2]
[340178768,1728775104959,10000.0,0.00024001,2]
[340178769,1728775114926,93.13778009,0.00024001,2]
[340178772,1728775423679,41764.7918105,0.0001,2]
[340178774,1728775550130,-685.54387381,0.00024001,2]
[340178775,1728775638191,-1218.8183461,0.00024001,2]
[340178776,1728775638214,-1005.07478323,0.00025204,2]
[340178777,1728775638236,-400.0,0.00032238,2]
[340178778,1728775638264,-400.0,0.00032238,2]
[340178779,1728775638288,-175.565379,0.00032239,2]
[340178780,1728775638310,-3000.0,0.00032239,2]
[340178781,1728775638333,-175.565379,0.0003232,2]
[340178782,1728775638355,-175.565379,0.000324,2]
[340178783,1728775638379,-157.0,0.0003284,2]
[340178784,1728775638402,-166.666667,0.00033653,2]
[340178785,1728775638426,-427.147308,0.0003438,2]
[340178786,1728775638453,-250.0,0.00034665,2]
[340178787,1728775638476,-560.0,0.00034666,2]
[340178788,1728775638505,-250.0,0.0003476,2]
[340178789,1728775638529,-250.0,0.00034855,2]
[340178790,1728775638552,-250.0,0.0003495,2]
[340178791,1728775638574,-150.0,0.00035,2]
[340178792,1728775638596,-302.45563732,0.00035,2]
[340178793,1728775638618,-302.42545213,0.00035,2]
[340178794,1728775638641,-105.55504359,0.00035045,2]
[340178795,1728775650153,-191.0039878,0.00033946,2]
[340178796,1728775650179,-144.44495641,0.00035045,2]
[340178797,1728775650204,-250.0,0.0003514,2]
[340178798,1728775650226,-250.0,0.00035235,2]
[340178799,1728775650250,-250.0,0.0003533,2]
[340178800,1728775650276,-302.45563732,0.0003535,2]
[340178801,1728775650303,-302.42545213,0.0003535,2]
[340178802,1728775650327,-250.0,0.00035425,2]
[340178803,1728775650350,-560.0,0.00035462,2]
[340178804,1728775650374,-119.09651648,0.0003552,2]
[340178805,1728775653040,-130.90348352,0.0003552,2]
[340178806,1728775653064,-26.70368167,0.00035615,2]
[340178808,1728775689208,4418.0,0.000167,2]
[340178809,1728775696813,213.63097965,0.000123,2]
[340178810,1728775698990,2755.61674285,0.000125,2]
[340178811,1728775704303,333.04240939,0.000212,2]
[340178812,1728775705949,260.24639404,0.00021,2]
[340178813,1728775710836,11764.83725553,0.000134,2]
[340178814,1728775711688,266.37976659,0.00014114,2]
[340178815,1728775718732,10215.07269891,0.00021,2]
[340178816,1728775718763,234.53350796,0.00021,2]
[340178817,1728775719840,7951.32941016,0.0002,2]
[340178818,1728775720722,91755.70758327,0.00020377,2]
[340178819,1728775722061,17492.73848636,0.0001,2]
[340178820,1728775723286,818.9083206,0.000125,2]
[340178821,1728775723914,14736.42775153,0.0002061,2]
[340178822,1728775745188,-300.0,0.00024999,2]
[340178823,1728775745212,-300.0,0.00024999,2]
[340178824,1728775745233,-8712.3278467,0.00025,2]
[340178825,1728775751137,-198.455036,0.00024564,2]
[340178826,1728775751160,-24900.0,0.00024564,2]
[340178827,1728775751183,-39331.64191715,0.00025,2]
[340178828,1728775751205,-7471.05648504,0.00025,2]
[340178829,1728775751227,-3091.06,0.0002508,10]
[340178830,1728775751249,-62598.22066746,0.0002509,2]
[340178831,1728775751271,-198.455036,0.00025248,2]
[340178832,1728775751293,-400.0,0.00025469,3]
[340178833,1728775751314,-198.455036,0.00025933,2]
[340178834,1728775751336,-7458.94652043,0.0002649,2]
[340178835,1728775751358,-420.0,0.00027082,2]
[340178836,1728775751380,-420.0,0.00027499,2]
[340178837,1728775751401,-44081.87953495,0.000275,2]
[340178838,1728775751422,-31792.49336355,0.0002799,2]
[340178839,1728775751444,-587.0,0.00029339,2]
[340178840,1728775751464,-1001.24360177,0.000295,120]
[340178841,1728775751485,-4747.8648044,0.0003,10]
[340178842,1728775751506,-587.0,0.00030249,2]
[340178843,1728775751528,-823.0,0.00031784,2]
[340178844,1728775751562,-156.0,0.0003284,2]
[340178845,1728775751588,-823.0,0.00033274,2]
[340178846,1728775755104,-1152.0,0.00034433,2]
[340178847,1728775755127,-223.29631833,0.00035615,2]
[340178848,1728775755148,-302.42545213,0.000357,2]
[340178849,1728775755172,-250.0,0.0003571,2]
[340178850,1728775755197,-250.0,0.00035805,2]